bitfinex/quotes_ETHUSD_20250220
["timestamp","ask_amount","ask_price","bid_price","bid_amount"]
[1740078029950,0.7974,2743.3,2742.8,3.64587]
[1740078030146,1.6870125,2743.3,2742.8,3.64587]
[1740078030473,5.3322725,2743.3,2742.8,3.64587]
[1740078030698,3.64539,2743.2,2742.7,7.06715038]
[1740078030915,3.64539,2743.2,2742.7,7.06710038]
[1740078031062,3.64539,2743.2,2742.7,10.71305038]
[1740078031262,3.64539,2743.2,2742.7,7.06709038]
[1740078031598,0.7974,2743.3,2743.0,3.64553]
[1740078031807,4.44267,2743.3,2742.7,3.42114038]
[1740078032100,3.64558,2743.1,2742.7,3.42114038]
[1740078032303,3.64538,2743.2,2742.7,7.06716038]
[1740078032760,3.64537,2743.2,2742.5,3.0]
[1740078032963,0.7982,2742.9,2742.5,6.64627]
[1740078033293,0.7982,2742.9,2742.6,3.64611]
[1740078033499,0.7982,2743.2,2742.9,3.64576]
[1740078033681,3.64483,2743.7,2742.9,3.64571]
[1740078033863,4.009443,2743.6,2743.0,3.64563]
[1740078034062,4.009443,2743.6,2743.1,3.64544]
[1740078035195,0.364483,2743.6,2743.1,3.64544]
[1740078035503,4.009373,2743.6,2743.1,3.64544]
[1740078035868,0.364483,2743.6,2743.2,3.64537]
[1740078036069,4.44279,2743.8,2743.2,3.64528]
[1740078036263,4.44279,2743.8,2743.1,3.64544]
[1740078036264,0.7982,2743.8,2743.0,3.42114038]
[1740078036579,4.4428,2743.8,2743.3,7.06636038]
[1740078036991,0.7982,2743.8,2743.3,7.06627038]
[1740078037194,0.7982,2743.8,2743.4,3.64503]
[1740078038068,0.7982,2743.8,2743.4,3.64511]
[1740078038509,0.7982,2743.8,2743.5,3.64496]
[1740078038717,0.7982,2743.8,2743.4,3.64511]
[1740078039203,0.7982,2743.8,2743.3,3.42114038]
[1740078039405,0.7982,2743.8,2743.4,3.64503]
[1740078039923,0.7982,2743.8,2743.3,10.71152038]
[1740078040120,1.242466,2743.8,2743.1,3.42114038]
[1740078040420,3.64485,2743.6,2743.1,3.64544]
[1740078040626,0.7548,2743.5,2743.1,3.64544]
[1740078040831,0.7548,2743.5,2743.2,3.64535]
[1740078041324,0.7548,2743.5,2743.2,3.64529]
[1740078042706,0.7548,2743.5,2743.1,3.64544]
[1740078043029,0.7548,2743.5,2743.0,7.06670038]
[1740078043232,0.7548,2743.5,2743.2,3.64535]
[1740078044134,0.7548,2743.5,2743.2,7.29058]
[1740078044519,0.7548,2743.5,2743.2,3.64529]
[1740078044841,0.7548,2743.5,2743.3,3.64519]
[1740078045133,0.7548,2743.5,2743.2,3.64537]
[1740078046543,0.7548,2743.5,2743.2,7.29067]
[1740078046839,0.7548,2743.5,2743.2,3.6453]
[1740078047618,0.7548,2743.5,2743.3,3.64521]
[1740078047941,0.7548,2743.5,2743.2,3.6453]
[1740078048345,0.7548,2743.5,2743.2,3.64529]
[1740078049841,0.7548,2743.5,2743.2,7.29059]
[1740078050034,0.7548,2743.5,2743.3,3.64512]
[1740078052548,4.083944,2743.9,2743.4,3.6451]
[1740078052750,0.439484,2743.9,2743.4,3.6451]
[1740078053045,4.083964,2743.9,2743.3,7.06632038]
[1740078053302,4.083964,2743.9,2742.9,4.47681]
[1740078053303,3.64478,2743.7,2743.1,7.06653038]
[1740078053448,0.7842,2743.6,2743.1,3.64539]
[1740078054290,0.439484,2743.9,2742.7,3.7975]
[1740078054291,0.7909,2743.4,2742.7,3.7975]
[1740078054448,4.43608,2743.4,2742.8,3.64589]
[1740078054648,0.7909,2743.4,2742.6,3.42114038]
[1740078054954,0.439484,2743.9,2742.6,7.06726038]
[1740078054955,0.7909,2743.1,2742.6,7.06726038]
[1740078055150,0.7909,2743.0,2742.5,3.64628]
[1740078055391,3.64597,2742.8,2742.3,3.64648]
[1740078055595,0.7909,2742.7,2742.3,3.64648]
[1740078057158,0.7909,2742.7,2742.2,3.42114038]
[1740078057360,0.7909,2742.7,2742.1,3.64675]
[1740078057361,3.64604,2742.7,2742.1,3.64675]
[1740078057575,0.8092,2742.6,2741.9,7.06815038]
[1740078057756,3.64631,2742.5,2741.9,7.06815038]
[1740078057956,3.64631,2742.5,2741.9,10.71518038]
[1740078058150,0.8289,2742.4,2741.9,7.06815038]
[1740078058354,3.64658,2742.3,2741.7,7.29452]
[1740078058655,0.8289,2742.2,2741.7,3.64725]
[1740078058883,4.47562,2742.2,2741.7,3.64725]
[1740078059477,0.8289,2742.0,2741.5,3.64755]
[1740078060168,0.8289,2742.0,2741.5,7.29511]
[1740078060369,0.8289,2742.0,2741.5,3.64755]
[1740078060569,1.641155,2742.0,2741.5,3.64755]
[1740078060983,5.288145,2742.0,2741.4,7.06890038]
[1740078061205,5.288145,2742.0,2741.4,3.64776]
[1740078061369,5.288145,2742.0,2741.4,7.06890038]
[1740078061564,1.641155,2742.0,2741.4,7.06890038]
[1740078061769,1.641155,2742.0,2741.4,10.71659038]
[1740078061992,1.641155,2742.0,2741.4,7.06883038]
[1740078062502,1.641155,2742.0,2741.5,3.64753]
[1740078062864,0.8289,2742.0,2741.6,3.6475]
[1740078063077,0.8289,2742.0,2741.9,3.6471]
[1740078063274,0.8289,2742.0,2741.8,3.64717]
[1740078064092,0.8289,2742.0,2741.7,7.06840038]
[1740078064387,0.8289,2742.0,2741.7,3.64726]
[1740078064589,0.8289,2742.0,2741.9,3.6471]
[1740078064793,0.7681,2742.2,2742.1,3.64684]
[1740078064993,0.7681,2742.6,2742.3,3.64654]
[1740078065196,0.7681,2742.6,2742.3,3.6465]
[1740078065393,0.7681,2742.6,2742.1,7.06791038]
[1740078065570,0.7681,2742.6,2742.2,3.6467]
[1740078067591,0.7681,2742.6,2742.4,3.64644]
[1740078067800,0.8036,2742.9,2742.4,3.42114038]
[1740078068002,0.8036,2742.9,2742.5,3.6463]
[1740078069148,0.8036,2742.9,2742.5,3.64627]
[1740078069344,1.248525,2742.9,2742.4,7.06757038]
[1740078069546,4.894315,2742.9,2742.3,3.64657]
[1740078070253,3.64633,2742.5,2742.0,3.64695]
[1740078070427,0.8105,2742.4,2742.0,3.64695]
[1740078070628,0.8105,2742.4,2742.1,3.64683]
[1740078071228,0.8105,2742.4,2741.9,6.64701]
[1740078071432,0.8105,2742.4,2741.9,3.64701]
[1740078071623,0.8105,2742.4,2742.1,3.64682]
[1740078071954,0.8105,2742.4,2742.2,3.64667]
[1740078072159,0.8105,2742.4,2742.1,7.06797038]
[1740078072533,0.8105,2742.4,2742.2,3.64666]
[1740078072860,0.8145,2742.8,2742.4,3.64636]
[1740078073057,0.8145,2742.8,2742.5,3.64622]
[1740078073229,0.8145,2743.1,2742.5,3.64622]
[1740078073435,0.8145,2743.1,2742.7,3.64596]
[1740078073738,0.8145,2743.1,2742.7,7.06710038]
[1740078073934,0.8145,2743.1,2742.9,3.64568]
[1740078074520,0.8145,2743.1,2742.8,3.64582]
[1740078074743,0.8145,2743.1,2742.9,3.64571]
[1740078075055,0.8145,2743.1,2742.7,7.85634042]
[1740078075056,0.7659,2743.5,2743.2,3.64537]
[1740078075660,0.7659,2743.5,2743.3,3.64517]
[1740078076973,0.7659,2743.5,2743.2,3.64537]
[1740078077973,0.7659,2743.5,2743.3,3.6452]
[1740078078177,0.7517,2743.8,2743.4,3.64511]
[1740078078507,0.7517,2743.8,2743.3,3.6452]
[1740078079507,4.39635,2743.8,2743.2,7.29066]
[1740078079714,4.39635,2743.8,2743.2,3.64529]
[1740078079918,4.39635,2743.8,2743.3,3.6452]
[1740078081520,0.7517,2743.8,2743.3,3.6452]
[1740078082814,4.39628,2743.8,2743.2,3.64529]
[1740078083416,5.200348,2743.8,2743.2,3.64529]
[1740078083618,5.200348,2743.8,2743.3,3.64523]
[1740078085020,5.200348,2743.8,2743.1,4.47099]
[1740078085187,5.200348,2743.8,2743.2,3.64529]
[1740078085522,1.555768,2743.8,2743.3,3.64521]
[1740078085725,4.39628,2743.8,2743.3,3.64521]
[1740078086226,0.7517,2743.8,2743.3,3.64521]
[1740078086421,4.39629,2743.8,2743.3,3.64521]
[1740078086613,0.7517,2743.8,2743.3,3.64516]
[1740078086798,0.7517,2743.8,2743.4,3.64502]
[1740078087120,4.39635,2743.8,2743.2,3.64528]
[1740078087328,4.39635,2743.8,2743.3,3.64524]
[1740078087890,4.39635,2743.8,2743.3,7.29041]
[1740078088086,4.39635,2743.8,2743.3,3.64517]
[1740078088290,0.7517,2743.8,2743.3,3.64517]
[1740078088488,0.7831,2744.0,2743.7,3.64471]
[1740078088706,0.7831,2744.0,2743.8,3.64449]
[1740078089224,0.8312,2744.3,2743.9,3.64442]
[1740078089425,0.8312,2744.3,2744.0,3.64431]
[1740078089727,0.8312,2744.3,2744.1,3.64416]
[1740078089926,0.8312,2744.3,2744.1,3.64408]
[1740078090090,0.8059,2744.6,2744.2,3.64404]
[1740078090487,0.8059,2744.6,2744.1,4.35060204]
[1740078090996,4.44944,2744.6,2744.1,4.35060204]
[1740078091332,4.44944,2744.6,2744.1,3.64408]
[1740078091623,3.64373,2744.5,2744.0,3.6443]
[1740078091829,0.7561,2744.4,2743.9,3.64435]
[1740078092030,0.7636,2744.7,2743.7,3.64462]
[1740078092232,4.4003,2744.1,2743.6,3.64473]
[1740078092591,3.64432,2744.0,2743.5,3.64491]
[1740078092797,3.64453,2743.9,2743.4,3.364517]
[1740078093100,3.64464,2743.8,2743.3,7.06628038]
[1740078093403,3.64464,2743.8,2743.3,8.24665842]
[1740078093605,3.64464,2743.8,2743.3,11.89181842]
[1740078094132,3.64464,2743.8,2743.3,8.24665842]
[1740078094433,0.7646,2743.9,2743.6,3.42114038]
[1740078094589,3.64411,2744.2,2743.7,7.28927]
[1740078094590,4.40121,2744.2,2743.7,7.28927]
[1740078094792,4.40121,2744.2,2743.8,3.64458]
[1740078094991,4.40121,2744.2,2743.7,3.6447]
[1740078095445,4.40121,2744.2,2743.7,3.64461]
[1740078095641,3.6442,2744.1,2743.7,3.64461]
[1740078095934,4.40121,2744.2,2743.7,7.28922]
[1740078096137,4.40121,2744.2,2743.7,3.64461]
[1740078096337,4.40121,2744.2,2743.8,3.64457]
[1740078096645,0.7571,2744.2,2743.8,3.64457]
[1740078096794,4.40117,2744.2,2743.7,3.64461]
[1740078097398,4.40117,2744.2,2743.8,3.64455]
[1740078097599,0.7571,2744.2,2743.8,3.64455]
[1740078097799,4.40116,2744.2,2743.7,3.64461]
[1740078098233,4.40116,2744.2,2743.7,7.28924]
[1740078098996,4.40116,2744.2,2743.7,3.64461]
[1740078099742,3.64424,2744.1,2743.6,7.06598038]
[1740078099899,4.40116,2744.2,2743.7,3.64468]
[1740078100331,4.40116,2744.2,2743.6,7.06598038]
[1740078100530,4.40116,2744.2,2743.7,3.64471]
[1740078100735,0.7571,2744.2,2743.7,3.64471]
[1740078100939,0.7571,2744.2,2743.8,3.64455]
[1740078101532,4.40115,2744.2,2743.8,3.64455]
[1740078101840,4.40115,2744.2,2743.7,3.6447]
[1740078102134,4.40115,2744.2,2743.8,3.64455]
[1740078104339,0.7571,2744.2,2743.8,3.64455]
[1740078104929,4.40115,2744.2,2743.8,3.64455]
[1740078105134,4.40115,2744.2,2743.7,3.64463]
[1740078105338,4.40115,2744.2,2743.8,3.64455]
[1740078106034,0.7571,2744.2,2743.6,3.42114038]
[1740078106198,0.7571,2744.2,2743.8,3.64451]
[1740078106399,4.40117,2744.2,2743.8,3.64451]
[1740078107025,0.7571,2744.2,2743.9,3.64441]
[1740078107724,0.7571,2744.2,2744.1,3.64418]
[1740078107930,0.7571,2744.2,2743.9,3.64436]
[1740078108821,0.8049,2744.5,2743.9,4.18425678]
[1740078109021,0.8049,2744.5,2744.2,3.64404]
[1740078109600,0.8049,2744.5,2744.3,3.64389]
[1740078109803,3.64274,2745.2,2744.7,3.64327]
[1740078109804,0.7953,2745.2,2744.7,3.64327]
[1740078110000,3.64292,2745.1,2744.7,3.64338]
[1740078110347,4.881817,2745.2,2744.6,3.42114038]
[1740078110650,4.881827,2745.2,2744.6,3.64342]
[1740078110872,4.43803,2745.2,2744.6,7.28685]
[1740078111060,4.43803,2745.2,2744.7,3.64336]
[1740078111348,0.7953,2745.2,2744.8,3.64317]
[1740078111647,0.7953,2745.2,2744.7,3.64338]
[1740078111848,4.43804,2745.2,2744.7,3.64338]
[1740078112017,4.43804,2745.2,2744.6,3.42114038]
[1740078112421,3.64285,2745.1,2744.6,3.42114038]
[1740078112619,3.64285,2745.1,2744.6,7.06457038]
[1740078114366,0.7953,2745.2,2744.8,3.64316]
[1740078114852,0.7953,2745.2,2744.9,3.64307]
[1740078115155,0.7953,2745.2,2744.8,3.64324]
[1740078115749,4.43804,2745.2,2744.7,4.40781]
[1740078115972,4.43804,2745.2,2744.8,3.64323]
[1740078116159,0.7953,2745.2,2744.8,3.64323]
[1740078116362,4.43802,2745.2,2744.8,3.64323]
[1740078116559,0.7953,2745.2,2744.8,3.64316]
[1740078117780,4.43812,2745.2,2744.7,1.14723404]
[1740078117950,3.64318,2744.9,2744.4,6.64372]
[1740078118149,3.64325,2744.8,2744.4,6.64372]
[1740078118452,0.7661,2744.7,2744.4,6.64372]
[1740078119066,0.7661,2744.7,2744.4,10.28743]
[1740078119379,0.7661,2744.7,2744.5,5.01449704]
[1740078119577,0.7661,2744.7,2744.5,1.37085704]
[1740078123189,4.40948,2744.7,2743.9,0.7631164]
[1740078123360,3.64358,2744.6,2744.1,7.06523038]
[1740078124185,3.64358,2744.6,2744.2,3.64399]
[1740078124364,4.44238,2745.0,2744.4,3.42114038]
[1740078124698,4.44238,2745.0,2744.5,3.64358]
[1740078125092,0.7994,2745.0,2744.5,3.64365]
[1740078125251,0.7994,2745.0,2744.6,3.6434]
[1740078125451,0.7994,2745.0,2744.6,3.64349]
[1740078125668,3.6432,2744.9,2744.6,1.07083004]
[1740078125864,3.6432,2744.9,2744.4,7.06482038]
[1740078126269,3.6432,2744.9,2744.4,10.70854038]
[1740078126592,3.6432,2744.9,2744.4,7.06482038]
[1740078126809,3.6432,2744.9,2744.4,10.70854038]
[1740078126962,3.6432,2744.9,2744.4,7.06482038]
[1740078127155,3.6432,2744.9,2744.4,7.95898462]
[1740078127361,3.64311,2744.9,2744.4,7.95898462]
[1740078127762,3.64321,2744.9,2744.4,7.95898462]
[1740078128178,0.822,2745.1,2744.3,1.07092204]
[1740078128392,0.822,2745.1,2744.2,3.64394]
[1740078128393,0.822,2744.6,2744.2,3.64394]
[1740078128629,4.46559,2744.6,2744.1,10.06530038]
[1740078129026,0.822,2744.6,2744.2,3.64403]
[1740078129538,0.822,2744.6,2744.3,3.6439]
[1740078129832,4.46553,2744.6,2744.2,3.64404]
[1740078130203,4.46553,2744.6,2744.1,10.06524038]
[1740078130391,4.46553,2744.6,2744.2,3.64402]
[1740078130591,0.822,2744.6,2744.2,3.64402]
[1740078131326,0.822,2744.6,2744.2,3.64404]
[1740078131504,4.46552,2744.6,2744.2,3.64404]
[1740078132028,0.822,2744.6,2744.3,3.64385]
[1740078132211,0.822,2744.6,2744.2,3.64404]
[1740078132529,0.822,2744.6,2744.2,4.7668172]
[1740078133204,0.822,2744.6,2744.3,3.64387]
[1740078133607,0.822,2744.6,2744.3,3.64391]
[1740078133792,3.64321,2744.9,2744.3,3.64391]
[1740078133793,0.7789,2744.8,2744.5,3.64362]
[1740078133996,0.7789,2745.0,2744.6,3.64339]
[1740078134423,4.43826,2745.3,2744.8,3.6432]
[1740078134636,0.7956,2745.3,2744.8,3.64319]
[1740078134933,3.64273,2745.2,2744.8,3.64319]
[1740078135435,0.7691,2745.1,2744.5,3.0]
[1740078135642,0.7691,2744.8,2744.5,3.0]
[1740078136847,3.64348,2744.7,2744.2,5.5455172]
[1740078136994,3.6434,2744.7,2744.2,3.64397]
[1740078137194,7.28688,2744.7,2744.2,3.64397]
[1740078137499,3.64353,2744.6,2744.2,3.64397]
[1740078137694,3.64353,2744.6,2744.2,4.32392906]
[1740078138136,0.7691,2744.8,2744.3,3.64379]
[1740078138443,4.41243,2744.8,2744.3,4.19382]
[1740078138643,4.41243,2744.8,2744.1,3.42114038]
[1740078138644,3.64364,2744.6,2744.1,7.06532038]
[1740078138796,0.825,2744.4,2744.1,3.0]
[1740078139000,4.46885,2744.4,2744.0,3.0]
[1740078139233,0.825,2744.4,2744.0,3.0]
[1740078139437,0.825,2744.4,2744.0,6.64423]
[1740078140096,0.825,2744.4,2744.0,3.64423]
[1740078141072,4.46888,2744.4,2743.9,6.64436]
[1740078141553,0.825,2744.4,2744.0,3.64428]
[1740078141759,4.46885,2744.4,2743.8,4.19274038]
[1740078141919,3.64407,2744.2,2743.7,3.64461]
[1740078142111,4.46958,2744.1,2743.6,7.45182]
[1740078142660,4.46958,2744.1,2743.6,6.64482]
[1740078142961,4.46958,2744.1,2743.7,3.6447]
[1740078144260,4.46958,2744.1,2743.6,6.64475]
[1740078144855,4.46958,2744.1,2743.7,3.6447]
[1740078145813,0.8254,2744.1,2743.6,6.64483]
[1740078146166,0.8254,2744.1,2743.5,3.42114038]
[1740078146327,0.7666,2743.8,2743.5,3.42114038]
[1740078147356,4.41119,2743.8,2743.5,3.42114038]
[1740078147726,3.64482,2743.7,2743.3,0.55]
[1740078148061,0.7745,2743.3,2742.7,8.12406]
[1740078148242,3.64558,2743.1,2742.6,7.06720038]
[1740078148420,0.7745,2743.0,2742.6,7.06720038]
[1740078148619,4.42014,2743.0,2742.7,0.55]
[1740078148818,4.42014,2743.0,2742.6,0.55]
[1740078149137,0.7745,2743.0,2742.6,4.19617]
[1740078149342,4.42015,2743.0,2742.6,4.19617]
[1740078149538,0.7745,2743.0,2742.6,4.19617]
[1740078149741,0.7745,2743.0,2742.3,0.72628266]
[1740078149742,3.64588,2742.9,2742.3,0.72628266]
[1740078149916,0.7652,2742.9,2742.0,3.52034038]
[1740078150121,3.64608,2742.7,2742.2,3.64661]
[1740078150846,3.64591,2742.8,2742.2,3.64661]
[1740078151269,3.64591,2742.8,2742.2,7.29324]
[1740078151437,3.64591,2742.8,2742.2,3.64661]
[1740078151882,3.64591,2742.8,2742.2,7.29324]
[1740078152144,3.64591,2742.8,2742.3,3.64649]
[1740078153459,3.64591,2742.8,2742.2,3.64661]
[1740078153460,0.7652,2742.9,2742.4,3.6464]
[1740078153672,3.64594,2742.8,2742.2,7.29318]
[1740078153983,3.64594,2742.8,2742.2,3.64657]
[1740078154160,3.64594,2742.8,2742.3,3.64654]
[1740078154361,0.7652,2742.9,2742.2,0.55]
[1740078154697,4.411,2742.9,2742.3,3.64649]
[1740078154863,3.64593,2742.8,2742.3,3.64649]
[1740078155050,3.64593,2742.8,2742.2,3.6467]
[1740078155246,3.64593,2742.8,2742.2,7.2934]
[1740078155479,3.64593,2742.8,2742.2,3.6467]
[1740078155789,3.64593,2742.8,2742.3,7.06770038]
[1740078160993,3.6461,2742.7,2742.3,3.42114038]
[1740078161290,0.809,2742.6,2742.2,0.55]
[1740078162455,0.809,2742.6,2742.2,4.19664]
[1740078162859,0.809,2742.6,2742.3,3.64651]
[1740078167213,0.809,2742.6,2742.3,3.64646]
[1740078167415,0.7887,2743.0,2742.4,3.64644]
[1740078167599,0.7887,2743.0,2742.5,3.64617]
[1740078168578,4.43436,2743.0,2742.5,3.64617]
[1740078169504,4.43436,2743.0,2742.4,3.64637]
[1740078169704,3.64582,2742.9,2742.4,3.64637]
[1740078169918,0.7612,2742.8,2742.4,3.64637]
[1740078170311,4.40711,2742.8,2742.3,4.1965]
[1740078170835,5.212387,2742.8,2742.2,3.64659]
[1740078171127,8.858427,2742.8,2742.2,3.64659]
[1740078171332,4.40737,2742.6,2742.0,3.74606]
[1740078171492,4.40756,2742.5,2742.0,3.74606]
[1740078171902,0.7612,2742.5,2742.0,3.74606]
[1740078172191,0.7612,2742.5,2742.1,3.64683]
[1740078172909,0.7612,2742.5,2742.0,3.74615]
[1740078175026,3.64658,2742.3,2742.0,0.0992]
[1740078175324,0.7612,2742.2,2742.0,0.0992]
[1740078180633,4.43614,2742.1,2742.0,0.0992]
[1740078184926,4.45114,2742.1,2742.0,0.0992]
[1740078186753,7.45114,2742.1,2742.0,0.0992]
[1740078186946,8.90304004,2742.1,2742.0,0.0992]
[1740078187148,8.90304004,2742.1,2742.0,1e-05]
[1740078187740,9.61993172,2742.1,2742.0,1e-05]
[1740078190373,14.97993172,2742.1,2742.0,1e-05]
[1740078190734,15.25503765,2742.1,2742.0,1e-05]
[1740078192066,0.7851,2741.0,2740.2,4.44056]
[1740078192271,0.7851,2741.0,2740.2,0.7913]
[1740078192272,3.64866,2740.8,2740.2,0.7913]
[1740078192575,3.64866,2740.8,2740.3,0.55]
[1740078193133,3.64871,2740.7,2740.3,0.55]
[1740078193337,3.64871,2740.7,2740.2,0.72988966]
[1740078193338,0.7851,2740.6,2740.2,0.72988966]
[1740078193533,4.43395,2740.6,2740.2,0.72988966]
[1740078193767,0.7851,2740.6,2740.2,0.72988966]
[1740078194166,10.23732,2740.6,2740.2,0.72988966]
[1740078195270,5.36,2740.6,2740.3,0.76]
[1740078195476,5.36,2740.6,2740.5,3.64896]
[1740078195866,5.36,2740.6,2740.5,4.19896]
[1740078196676,3.64817,2741.1,2740.8,3.6485]
[1740078196677,5.36,2741.1,2740.8,3.6485]
[1740078196838,5.36,2741.2,2740.8,4.09474]
[1740078197040,5.36,2741.2,2741.1,0.55]
[1740078197594,5.36,2741.2,2741.1,4.19817]
[1740078197739,5.36,2741.8,2741.4,3.64768]
[1740078197937,5.36,2742.0,2741.5,0.55]
[1740078198170,9.77394,2742.1,2741.5,0.55]
[1740078198478,3.64727,2741.8,2741.1,4.45189]
[1740078199174,3.64727,2741.8,2741.1,8.09997]
[1740078199370,3.64727,2741.8,2741.2,0.55]
[1740078199541,0.8056,2741.7,2741.2,0.55]
[1740078200767,0.8056,2741.7,2741.2,4.198]
[1740078201139,0.8056,2741.7,2741.2,0.55]
[1740078201982,0.7568,2741.9,2741.3,3.64783]
[1740078202164,5.36,2741.8,2741.4,0.55]
[1740078202363,5.36,2741.8,2741.5,3.64756]
[1740078203590,5.36,2741.8,2741.4,0.55]
[1740078204488,9.00725,2741.8,2741.2,4.198]
[1740078204847,5.36,2741.8,2741.4,0.55]
[1740078206161,9.00724,2741.8,2741.4,0.55]
[1740078206456,9.00724,2741.8,2741.3,3.64789]
[1740078206457,10.272675,2741.8,2741.3,3.64789]
[1740078206779,5.36,2741.8,2741.3,3.64783]
[1740078206990,5.36,2741.8,2741.4,4.19769]
[1740078208086,5.36,2741.9,2741.4,4.19769]
[1740078208394,5.36,2741.9,2741.4,0.55]
[1740078208762,5.36,2741.9,2741.4,4.19773]
[1740078209702,5.36,2741.9,2741.6,0.7556]
[1740078210084,5.36,2741.9,2741.7,0.55]
[1740078210248,5.36,2742.2,2741.8,0.55]
[1740078210454,5.36,2742.2,2742.1,4.19684]
[1740078210759,5.36,2742.2,2742.0,4.44155]
[1740078210760,2.80243149,2742.3,2742.0,4.44155]
[1740078210951,2.80243149,2742.3,2741.7,3.7946]
[1740078211156,2.80243149,2742.3,2741.8,3.64721]
[1740078211405,2.80243149,2742.3,2741.9,3.64705]
[1740078211880,2.80243149,2742.3,2741.9,3.64697]
[1740078212504,2.80243149,2742.3,2741.8,3.64721]
[1740078212662,2.80243149,2742.3,2742.0,3.64696]
[1740078212992,2.80243149,2742.3,2742.2,0.55]
[1740078213363,2.80243149,2742.3,2742.2,4.1967]
[1740078213564,2.80243149,2742.3,2742.2,0.55]
[1740078214802,2.80243149,2742.3,2742.0,0.7532]
[1740078215025,2.80243149,2742.3,2742.0,0.55]
[1740078215571,2.80243149,2742.3,2742.0,4.19684]
[1740078216412,2.80243149,2742.3,2742.1,3.64683]
[1740078216607,2.80243149,2742.3,2742.2,0.55]
[1740078216794,2.80243149,2742.3,2742.2,4.1967]
[1740078217293,2.80243149,2742.3,2742.2,0.55]
[1740078220171,2.80243149,2742.3,2742.0,3.6469]
[1740078220371,2.80243149,2742.3,2742.1,0.55]
[1740078222416,2.80243149,2742.3,2741.9,4.19709]
[1740078222615,6.44902149,2742.3,2741.9,0.55]
[1740078222921,2.80243149,2742.3,2741.9,0.55]
[1740078223215,7.70903264,2742.3,2741.9,0.55]
[1740078224431,7.70903264,2742.3,2741.6,4.41944]
[1740078224432,3.64684,2742.1,2741.6,4.41944]
[1740078224724,0.7764,2742.0,2741.5,3.64762]
[1740078225017,3.64718,2741.9,2741.3,8.06765]
[1740078225208,3.64718,2741.9,2741.4,0.55]
[1740078225397,4.990229,2741.9,2741.4,4.19768]
[1740078226186,1.343049,2741.9,2741.4,0.55]
[1740078226425,9.7835,2742.0,2741.4,0.55]
[1740078226621,9.7835,2742.0,2741.6,0.55]
[1740078226789,13.43057,2742.0,2741.4,4.19775]
[1740078227301,9.78347,2742.0,2741.4,4.19775]
[1740078227495,3.64711,2741.9,2741.4,4.19775]
[1740078228422,9.78347,2742.0,2741.4,4.19768]
[1740078228637,9.78347,2742.0,2741.3,1.51580828]
[1740078228638,6.1364,2742.0,2741.6,0.55]
[1740078228815,10.761749,2742.0,2741.5,0.55]
[1740078229823,3.6471,2741.9,2741.5,0.55]
[1740078230431,14.408839,2742.0,2741.5,0.55]
[1740078230626,10.761749,2742.0,2741.5,0.55]
[1740078231136,7.114719,2742.0,2741.5,4.19763]
[1740078231343,5.36,2742.0,2741.8,0.55]
[1740078231658,5.36,2742.0,2741.9,4.1971]
[1740078232212,5.36,2742.0,2741.9,0.55]
[1740078234730,0.7638,2742.2,2742.0,0.55]
[1740078234947,0.7638,2742.2,2741.8,3.64723]
[1740078235247,0.7638,2742.2,2741.9,0.55]
[1740078235615,8.16243149,2742.3,2741.9,4.19708]
[1740078236417,8.16243149,2742.3,2741.9,4.19701]
[1740078237852,8.16243149,2742.3,2741.9,0.55]
[1740078238146,9.42064864,2742.3,2741.9,4.19708]
[1740078240031,9.42064864,2742.3,2741.9,0.55]
[1740078240354,9.42064864,2742.3,2741.9,4.19709]
[1740078241455,9.42064864,2742.3,2741.9,0.55]
[1740078241619,8.16243149,2742.3,2742.1,0.55]
[1740078241818,2.80243149,2742.3,2742.1,0.55]
[1740078242953,2.80243149,2742.3,2742.1,4.1968]
[1740078243156,2.80243149,2742.3,2742.1,0.55]
[1740078244536,2.80243149,2742.3,2742.1,4.19675]
[1740078245153,2.80243149,2742.3,2742.1,0.55]
[1740078246061,3.08267464,2742.3,2741.7,7.82613038]
[1740078246258,4.47226,2742.2,2741.6,3.6474]
[1740078246428,0.8255,2742.2,2741.7,3.64735]
[1740078247144,4.47222,2742.2,2741.6,4.19739]
[1740078247347,4.47222,2742.2,2741.8,0.55]
[1740078247670,2.48164346,2742.2,2741.8,0.55]
[1740078249778,2.48164346,2742.2,2741.4,3.0]
[1740078249779,3.64705,2742.0,2741.4,3.0]
[1740078249987,4.40121,2741.9,2741.3,3.64781]
[1740078250389,4.40121,2741.9,2741.4,0.55]
[1740078250678,1.340826,2741.8,2741.4,0.55]
[1740078251144,4.988076,2741.8,2741.4,0.55]
[1740078251346,4.988076,2741.8,2741.2,7.19796]
[1740078251547,0.754,2741.6,2741.1,3.64816]
[1740078251864,0.754,2741.6,2741.2,0.55]
[1740078252068,2.2289486,2741.6,2741.2,0.55]
[1740078252776,2.2289486,2741.6,2741.1,4.19805]
[1740078252945,2.2289486,2741.6,2741.3,0.55]
[1740078254045,2.2289486,2741.6,2741.1,3.64814]
[1740078254046,5.8764686,2741.6,2741.1,3.64814]
[1740078254771,3.6477,2741.5,2740.9,3.64843]
[1740078254947,0.754,2741.6,2740.8,4.17174038]
[1740078255149,5.36,2741.8,2741.5,0.55]
[1740078255364,9.80962,2741.9,2741.5,0.55]
[1740078255981,9.80962,2741.9,2741.4,4.19776]
[1740078255982,6.1624,2741.9,2741.4,4.19776]
[1740078256271,5.36,2741.9,2741.7,7.61842038]
[1740078256473,5.36,2742.5,2741.8,0.55]